[Event "Titled Tuesday Blitz November 14 Late 2023"]
[White "Ongut, Tamas Gunes"]
[Black "Huda, Maryana"]
[WhiteFideId "770280"]
[BlackFideId "14116553"]
[WhiteElo "2522"]
[BlackElo "2358"]
[Result "1-0"]
[Round "8"]
[TimeControl "180+1"]
[Date "2023.11.14"]
[WhiteClock "0:01:47"]
[BlackClock "0:00:02"]
[Board "79"]

1. c4 {[%clk 0:03:00]}  c5 {[%clk 0:02:57]} 2. Nc3 {[%clk 0:03:00]}  Nf6 {[%clk 0:02:57]} 3. Nf3 {[%clk 0:03:01]}  Nc6 {[%clk 0:02:57]} 4. e3 {[%clk 0:03:02]}  g6 {[%clk 0:02:57]} 5. d4 {[%clk 0:03:02]}  cxd4 {[%clk 0:02:58]} 6. exd4 {[%clk 0:03:03]}  d5 {[%clk 0:02:57]} 7. cxd5 {[%clk 0:03:03]}  Nxd5 {[%clk 0:02:58]} 8. Qb3 {[%clk 0:03:04]}  Nxc3 {[%clk 0:02:43]} 9. Bc4 {[%clk 0:03:03]}  e6 {[%clk 0:02:18]} 10. bxc3 {[%clk 0:03:02]}  Bg7 {[%clk 0:02:17]} 11. Ba3 {[%clk 0:03:01]}  Ne7 {[%clk 0:02:10]} 12. Qb4 {[%clk 0:02:50]}  Bf6 {[%clk 0:02:01]} 13. g4 {[%clk 0:02:47]}  Nd5 {[%clk 0:01:48]} 14. Qb3 {[%clk 0:02:44]}  Be7 {[%clk 0:01:43]} 15. Bxe7 {[%clk 0:02:42]}  Nxe7 {[%clk 0:01:41]} 16. O-O-O {[%clk 0:02:39]}  O-O {[%clk 0:01:37]} 17. h4 {[%clk 0:02:38]}  Nd5 {[%clk 0:01:33]} 18. h5 {[%clk 0:02:27]}  Qa5 {[%clk 0:01:33]} 19. Bxd5 {[%clk 0:02:27]}  Qxd5 {[%clk 0:01:33]} 20. Qxd5 {[%clk 0:02:27]}  exd5 {[%clk 0:01:33]} 21. hxg6 {[%clk 0:02:23]}  fxg6 {[%clk 0:01:31]} 22. Ng5 {[%clk 0:02:22]}  Bxg4 {[%clk 0:01:25]} 23. Rdg1 {[%clk 0:02:22]}  h5 {[%clk 0:01:20]} 24. f3 {[%clk 0:02:14]}  Bxf3 {[%clk 0:01:17]} 25. Nxf3 {[%clk 0:02:14]}  Rxf3 {[%clk 0:01:18]} 26. Rxg6+ {[%clk 0:02:15]}  Kf7 {[%clk 0:01:18]} 27. Rg5 {[%clk 0:02:15]}  Rxc3+ {[%clk 0:01:16]} 28. Kd2 {[%clk 0:02:16]}  Rac8 {[%clk 0:01:14]} 29. Rxd5 {[%clk 0:02:11]}  Rc2+ {[%clk 0:01:14]} 30. Ke3 {[%clk 0:02:11]}  R8c3+ {[%clk 0:01:14]} 31. Kf4 {[%clk 0:02:10]}  Rf2+ {[%clk 0:01:09]} 32. Ke5 {[%clk 0:02:11]}  Re3+ {[%clk 0:01:04]} 33. Kd6 {[%clk 0:02:11]}  Rxa2 {[%clk 0:00:56]} 34. Rf1+ {[%clk 0:02:01]}  Kg6 {[%clk 0:00:53]} 35. Rg1+ {[%clk 0:01:56]}  Kh6 {[%clk 0:00:52]} 36. Rh1 {[%clk 0:01:57]}  Ra6+ {[%clk 0:00:50]} 37. Kd7 {[%clk 0:01:56]}  Rg3 {[%clk 0:00:39]} 38. Rdxh5+ {[%clk 0:01:54]}  Kg6 {[%clk 0:00:36]} 39. Rh6+ {[%clk 0:01:54]}  Kf5 {[%clk 0:00:35]} 40. Rxa6 {[%clk 0:01:54]}  bxa6 {[%clk 0:00:35]} 41. d5 {[%clk 0:01:54]}  Rd3 {[%clk 0:00:32]} 42. d6 {[%clk 0:01:55]}  Ke5 {[%clk 0:00:30]} 43. Rh5+ {[%clk 0:01:54]}  Kd4 {[%clk 0:00:29]} 44. Ra5 {[%clk 0:01:54]}  Kc4 {[%clk 0:00:28]} 45. Rxa6 {[%clk 0:01:53]}  Kc5 {[%clk 0:00:27]} 46. Kc7 {[%clk 0:01:53]}  Kb5 {[%clk 0:00:20]} 47. Rxa7 {[%clk 0:01:53]}  Rc3+ {[%clk 0:00:20]} 48. Kd8 {[%clk 0:01:51]}  Kb6 {[%clk 0:00:20]} 49. Rc7 {[%clk 0:01:50]}  Rd3 {[%clk 0:00:20]} 50. d7 {[%clk 0:01:50]}  Rh3 {[%clk 0:00:16]} 51. Kc8 {[%clk 0:01:46]}  Ra3 {[%clk 0:00:08]} 52. d8=Q {[%clk 0:01:45]}  Ra8+ {[%clk 0:00:08]} 53. Kd7 {[%clk 0:01:46]}  Rxd8+ {[%clk 0:00:02]} 54. Kxd8 {[%clk 0:01:47]} 1-0


[Site "https://www.chess.com"]

[Event "Titled Tuesday Blitz November 14 Late 2023"]
[White "Kovacsy, Barnabas"]
[Black "Lalanne, Pablo"]
[WhiteFideId "769290"]
[BlackFideId "112151"]
[WhiteElo "2518"]
[BlackElo "2355"]
[Result "1-0"]
[Round "8"]
[TimeControl "180+1"]
[Date "2023.11.14"]
[WhiteClock "0:00:27"]
[BlackClock "0:00:31"]
[Board "80"]

1. e4 {[%clk 0:03:00]}  e5 {[%clk 0:02:57]} 2. Nf3 {[%clk 0:03:01]}  Nc6 {[%clk 0:02:56]} 3. Bb5 {[%clk 0:03:01]}  a6 {[%clk 0:02:55]} 4. Bxc6 {[%clk 0:03:00]}  dxc6 {[%clk 0:02:55]} 5. Nc3 {[%clk 0:03:01]}  Bd6 {[%clk 0:02:53]} 6. d4 {[%clk 0:03:00]}  exd4 {[%clk 0:02:52]} 7. Qxd4 {[%clk 0:03:01]}  f6 {[%clk 0:02:46]} 8. Be3 {[%clk 0:03:01]}  Ne7 {[%clk 0:02:42]} 9. O-O-O {[%clk 0:02:58]}  Be6 {[%clk 0:02:38]} 10. Qd2 {[%clk 0:02:51]}  O-O {[%clk 0:02:35]} 11. Bf4 {[%clk 0:02:43]}  Bxf4 {[%clk 0:02:28]} 12. Qxf4 {[%clk 0:02:44]}  Qc8 {[%clk 0:02:27]} 13. Nd4 {[%clk 0:02:41]}  Ng6 {[%clk 0:02:24]} 14. Qe3 {[%clk 0:02:27]}  Bd7 {[%clk 0:02:22]} 15. f3 {[%clk 0:02:25]}  b5 {[%clk 0:02:20]} 16. Nb3 {[%clk 0:02:23]}  Be6 {[%clk 0:02:16]} 17. Qc5 {[%clk 0:02:19]}  Ne5 {[%clk 0:02:12]} 18. Nd4 {[%clk 0:02:15]}  Bd7 {[%clk 0:02:06]} 19. f4 {[%clk 0:02:11]}  Nc4 {[%clk 0:02:05]} 20. Nxc6 {[%clk 0:02:07]}  Bxc6 {[%clk 0:02:03]} 21. Qxc6 {[%clk 0:02:07]}  Qg4 {[%clk 0:01:58]} 22. g3 {[%clk 0:02:01]}  Qf3 {[%clk 0:01:40]} 23. Rhe1 {[%clk 0:01:47]}  Kh8 {[%clk 0:01:33]} 24. Rd3 {[%clk 0:01:18]}  Qf2 {[%clk 0:01:30]} 25. Re2 {[%clk 0:01:18]}  Qf1+ {[%clk 0:01:24]} 26. Rd1 {[%clk 0:01:18]}  Qf3 {[%clk 0:01:24]} 27. Qd5 {[%clk 0:01:15]}  h6 {[%clk 0:01:16]} 28. Qd3 {[%clk 0:01:15]}  Qg4 {[%clk 0:01:12]} 29. b3 {[%clk 0:01:05]}  Nd6 {[%clk 0:01:06]} 30. Nd5 {[%clk 0:01:03]}  f5 {[%clk 0:00:59]} 31. e5 {[%clk 0:00:59]}  Ne4 {[%clk 0:00:59]} 32. Ne3 {[%clk 0:00:51]}  Qg6 {[%clk 0:00:56]} 33. Nxf5 {[%clk 0:00:45]}  Nc5 {[%clk 0:00:54]} 34. Qd5 {[%clk 0:00:44]}  Nxb3+ {[%clk 0:00:52]} 35. axb3 {[%clk 0:00:43]}  Qxf5 {[%clk 0:00:52]} 36. e6 {[%clk 0:00:43]}  Qf6 {[%clk 0:00:50]} 37. e7 {[%clk 0:00:43]}  Rfe8 {[%clk 0:00:50]} 38. Qe5 {[%clk 0:00:41]}  Qc6 {[%clk 0:00:48]} 39. Kb2 {[%clk 0:00:39]}  b4 {[%clk 0:00:47]} 40. Re4 {[%clk 0:00:34]}  a5 {[%clk 0:00:47]} 41. Rc4 {[%clk 0:00:34]}  Qf3 {[%clk 0:00:43]} 42. Rd3 {[%clk 0:00:32]}  Qg4 {[%clk 0:00:40]} 43. Rcd4 {[%clk 0:00:31]}  a4 {[%clk 0:00:40]} 44. Rd8 {[%clk 0:00:28]}  a3+ {[%clk 0:00:41]} 45. Ka2 {[%clk 0:00:28]}  Kh7 {[%clk 0:00:37]} 46. Rxa8 {[%clk 0:00:27]}  Rxa8 {[%clk 0:00:37]} 47. e8=Q {[%clk 0:00:27]}  Rxe8 {[%clk 0:00:31]} 48. Qxe8 {[%clk 0:00:27]} 1-0


[Site "https://www.chess.com"]

[Event "Titled Tuesday Blitz November 14 Late 2023"]
[White "Kochiev, Ivan"]
[Black "Ramadoss, Ashokkumar"]
[WhiteFideId "2917890"]
[BlackFideId "5040990"]
[WhiteElo "2492"]
[BlackElo "2344"]
[Result "1-0"]
[Round "8"]
[TimeControl "180+1"]
[Date "2023.11.14"]
[WhiteClock "0:00:27"]
[BlackClock "0:00:00"]
[Board "83"]

1. e4 {[%clk 0:03:00]}  e6 {[%clk 0:02:59]} 2. d4 {[%clk 0:03:00]}  d5 {[%clk 0:02:59]} 3. Nd2 {[%clk 0:03:01]}  Be7 {[%clk 0:02:59]} 4. c3 {[%clk 0:03:00]}  c5 {[%clk 0:02:59]} 5. exd5 {[%clk 0:03:01]}  Qxd5 {[%clk 0:02:59]} 6. Ngf3 {[%clk 0:03:01]}  cxd4 {[%clk 0:02:59]} 7. Bc4 {[%clk 0:03:01]}  Qd8 {[%clk 0:02:58]} 8. Nxd4 {[%clk 0:03:01]}  Nf6 {[%clk 0:02:57]} 9. O-O {[%clk 0:03:01]}  Bd7 {[%clk 0:02:57]} 10. N2f3 {[%clk 0:02:54]}  Nc6 {[%clk 0:02:56]} 11. Be3 {[%clk 0:02:52]}  O-O {[%clk 0:02:55]} 12. Qe2 {[%clk 0:02:51]}  Nxd4 {[%clk 0:02:55]} 13. Nxd4 {[%clk 0:02:49]}  Qc7 {[%clk 0:02:48]} 14. Rad1 {[%clk 0:02:48]}  Bc6 {[%clk 0:02:48]} 15. Nxc6 {[%clk 0:02:47]}  Qxc6 {[%clk 0:02:49]} 16. Rd2 {[%clk 0:02:44]}  a6 {[%clk 0:02:42]} 17. Bd3 {[%clk 0:02:39]}  Rad8 {[%clk 0:02:41]} 18. Rfd1 {[%clk 0:02:39]}  Rd7 {[%clk 0:02:38]} 19. h3 {[%clk 0:02:34]}  Rfd8 {[%clk 0:02:37]} 20. Bc2 {[%clk 0:02:33]}  Rxd2 {[%clk 0:02:35]} 21. Rxd2 {[%clk 0:02:34]}  Rxd2 {[%clk 0:02:34]} 22. Qxd2 {[%clk 0:02:34]}  Qd5 {[%clk 0:02:34]} 23. Qxd5 {[%clk 0:02:34]}  Nxd5 {[%clk 0:02:35]} 24. Bd4 {[%clk 0:02:32]}  Nf4 {[%clk 0:02:23]} 25. Kf1 {[%clk 0:02:31]}  f5 {[%clk 0:01:58]} 26. h4 {[%clk 0:02:15]}  Kf7 {[%clk 0:01:56]} 27. g3 {[%clk 0:02:15]}  Ng6 {[%clk 0:01:25]} 28. Ke2 {[%clk 0:02:03]}  Bf6 {[%clk 0:01:25]} 29. Ke3 {[%clk 0:02:00]}  Ne5 {[%clk 0:01:14]} 30. Ke2 {[%clk 0:01:33]}  Ke7 {[%clk 0:01:10]} 31. b3 {[%clk 0:01:27]}  Nc6 {[%clk 0:01:04]} 32. Bxf6+ {[%clk 0:01:26]}  Kxf6 {[%clk 0:01:03]} 33. Ke3 {[%clk 0:01:24]}  e5 {[%clk 0:01:02]} 34. Bd1 {[%clk 0:01:21]}  g6 {[%clk 0:00:58]} 35. Be2 {[%clk 0:01:14]}  h6 {[%clk 0:00:55]} 36. Bc4 {[%clk 0:01:06]}  Ke7 {[%clk 0:00:47]} 37. f4 {[%clk 0:00:56]}  exf4+ {[%clk 0:00:36]} 38. gxf4 {[%clk 0:00:54]}  b5 {[%clk 0:00:25]} 39. Bd5 {[%clk 0:00:53]}  Kd6 {[%clk 0:00:16]} 40. Bxc6 {[%clk 0:00:52]}  Kxc6 {[%clk 0:00:17]} 41. Kd4 {[%clk 0:00:52]}  Kd6 {[%clk 0:00:17]} 42. c4 {[%clk 0:00:45]}  bxc4 {[%clk 0:00:13]} 43. bxc4 {[%clk 0:00:46]}  Kc6 {[%clk 0:00:13]} 44. c5 {[%clk 0:00:46]}  a5 {[%clk 0:00:13]} 45. a4 {[%clk 0:00:45]}  Kd7 {[%clk 0:00:11]} 46. Kd5 {[%clk 0:00:45]}  Kc7 {[%clk 0:00:12]} 47. c6 {[%clk 0:00:31]}  Kc8 {[%clk 0:00:10]} 48. Kd6 {[%clk 0:00:30]}  Kd8 {[%clk 0:00:11]} 49. c7+ {[%clk 0:00:28]}  Kc8 {[%clk 0:00:00]} 50. Kc6 {[%clk 0:00:27]} 1-0


[Site "https://www.chess.com"]

[Event "Titled Tuesday Blitz November 14 Late 2023"]
[White "Li, Hui"]
[Black "Hajiyev, Kanan"]
[WhiteFideId "15400310"]
[BlackFideId "13404148"]
[WhiteElo "2343"]
[BlackElo "2490"]
[Result "0-1"]
[Round "8"]
[TimeControl "180+1"]
[Date "2023.11.14"]
[WhiteClock "0:00:00"]
[BlackClock "0:01:22"]
[Board "84"]

1. e4 {[%clk 0:03:00]}  a6 {[%clk 0:03:00]} 2. d4 {[%clk 0:03:00]}  b5 {[%clk 0:03:01]} 3. Nf3 {[%clk 0:02:58]}  Bb7 {[%clk 0:03:02]} 4. Bd3 {[%clk 0:02:58]}  Nf6 {[%clk 0:03:03]} 5. Qe2 {[%clk 0:02:56]}  e6 {[%clk 0:03:03]} 6. O-O {[%clk 0:02:53]}  c5 {[%clk 0:03:03]} 7. dxc5 {[%clk 0:02:40]}  Bxc5 {[%clk 0:03:04]} 8. a4 {[%clk 0:02:35]}  b4 {[%clk 0:03:04]} 9. Nbd2 {[%clk 0:02:30]}  O-O {[%clk 0:03:04]} 10. e5 {[%clk 0:02:29]}  Nd5 {[%clk 0:03:00]} 11. Ne4 {[%clk 0:02:29]}  Be7 {[%clk 0:02:58]} 12. Bg5 {[%clk 0:02:23]}  Nc6 {[%clk 0:02:48]} 13. Bxe7 {[%clk 0:02:21]}  Qxe7 {[%clk 0:02:48]} 14. Nd6 {[%clk 0:02:17]}  Ra7 {[%clk 0:02:46]} 15. Nxb7 {[%clk 0:01:52]}  Rxb7 {[%clk 0:02:47]} 16. Bxa6 {[%clk 0:01:51]}  Rc7 {[%clk 0:02:47]} 17. Bd3 {[%clk 0:01:41]}  Nf4 {[%clk 0:02:47]} 18. Qe4 {[%clk 0:01:39]}  Nxd3 {[%clk 0:02:47]} 19. Qxd3 {[%clk 0:01:38]}  Qc5 {[%clk 0:02:48]} 20. Rfe1 {[%clk 0:01:27]}  Na5 {[%clk 0:02:46]} 21. Nd4 {[%clk 0:01:08]}  Rfc8 {[%clk 0:02:44]} 22. Nb3 {[%clk 0:01:02]}  Nxb3 {[%clk 0:02:38]} 23. cxb3 {[%clk 0:00:39]}  g6 {[%clk 0:02:37]} 24. g3 {[%clk 0:00:36]}  Qa5 {[%clk 0:02:35]} 25. Qb5 {[%clk 0:00:34]}  Qxb5 {[%clk 0:02:34]} 26. axb5 {[%clk 0:00:35]}  Rb8 {[%clk 0:02:35]} 27. Ra5 {[%clk 0:00:31]}  Rcb7 {[%clk 0:02:27]} 28. Rd1 {[%clk 0:00:31]}  Kf8 {[%clk 0:02:26]} 29. f4 {[%clk 0:00:28]}  Ke7 {[%clk 0:02:26]} 30. Rd4 {[%clk 0:00:24]}  Rxb5 {[%clk 0:02:26]} 31. Ra7 {[%clk 0:00:24]}  R8b7 {[%clk 0:02:26]} 32. Ra4 {[%clk 0:00:20]}  h5 {[%clk 0:02:26]} 33. Kf2 {[%clk 0:00:20]}  R5b6 {[%clk 0:02:07]} 34. Ke3 {[%clk 0:00:20]}  d5 {[%clk 0:01:55]} 35. exd6+ {[%clk 0:00:20]}  Rxd6 {[%clk 0:01:55]} 36. Rxd6 {[%clk 0:00:18]}  Kxd6 {[%clk 0:01:56]} 37. Kd4 {[%clk 0:00:19]}  Rc7 {[%clk 0:01:24]} 38. Rxb4 {[%clk 0:00:17]}  Rc2 {[%clk 0:01:24]} 39. Rb7 {[%clk 0:00:10]}  f5 {[%clk 0:01:24]} 40. Rg7 {[%clk 0:00:06]}  Rxb2 {[%clk 0:01:23]} 41. Kc3 {[%clk 0:00:06]}  Rxh2 {[%clk 0:01:23]} 42. Rxg6 {[%clk 0:00:07]}  Rh3 {[%clk 0:01:24]} 43. Kc4 {[%clk 0:00:07]}  Rh1 {[%clk 0:01:22]} 44. b4 {[%clk 0:00:06]}  Rc1+ {[%clk 0:01:23]} 45. Kb5 {[%clk 0:00:06]}  Kd5 {[%clk 0:01:23]} 46. Kb6 {[%clk 0:00:06]}  Rg1 {[%clk 0:01:23]} 47. Rh6 {[%clk 0:00:03]}  Rxg3 {[%clk 0:01:23]} 48. Rxh5 {[%clk 0:00:04]}  Rg4 {[%clk 0:01:22]} 49. b5 {[%clk 0:00:04]}  Rxf4 {[%clk 0:01:23]} 50. Kc7 {[%clk 0:00:04]}  Rc4+ {[%clk 0:01:23]} 51. Kb7 {[%clk 0:00:03]}  Ke4 {[%clk 0:01:22]} 52. Rh6 {[%clk 0:00:02]}  e5 {[%clk 0:01:22]} 53. Rd6 {[%clk 0:00:01]}  f4 {[%clk 0:01:22]} 54. b6 {[%clk 0:00:01]}  f3 {[%clk 0:01:22]} 55. Rf6 {[%clk 0:00:01]}  Ke3 {[%clk 0:01:22]} 56. Ka6 {[%clk 0:00:02]}  Ra4+ {[%clk 0:01:22]} 57. Kb5 {[%clk 0:00:02]}  Ra2 {[%clk 0:01:22]} 58. Rf5 {[%clk 0:00:01]}  e4 {[%clk 0:01:23]} 59. Kc6 {[%clk 0:00:02]}  Rc2+ {[%clk 0:01:22]} 60. Rc5 {[%clk 0:00:01]}  f2 {[%clk 0:01:23]} 61. Rxc2 {[%clk 0:00:01]}  f1=Q {[%clk 0:01:24]} 62. b7 {[%clk 0:00:00]}  Qf6+ {[%clk 0:01:22]} 0-1


[Site "https://www.chess.com"]

[Event "Titled Tuesday Blitz November 14 Late 2023"]
[White "FM_Kappeler"]
[Black "ExchangeAB"]
[WhiteElo "2313"]
[BlackElo "2445"]
[Result "1-0"]
[Round "8"]
[TimeControl "180+1"]
[Date "2023.11.14"]
[WhiteClock "0:00:05"]
[BlackClock "0:00:11"]
[Board "87"]

1. d4 {[%clk 0:03:00]}  d5 {[%clk 0:03:00]} 2. c4 {[%clk 0:03:00]}  c6 {[%clk 0:03:00]} 3. Nf3 {[%clk 0:03:00]}  Nf6 {[%clk 0:03:00]} 4. e3 {[%clk 0:03:00]}  Bf5 {[%clk 0:03:00]} 5. Nc3 {[%clk 0:03:00]}  e6 {[%clk 0:03:00]} 6. Nh4 {[%clk 0:03:00]}  Be4 {[%clk 0:03:00]} 7. f3 {[%clk 0:02:59]}  Bg6 {[%clk 0:03:00]} 8. Qb3 {[%clk 0:02:55]}  Qb6 {[%clk 0:03:00]} 9. Nxg6 {[%clk 0:02:35]}  hxg6 {[%clk 0:03:00]} 10. Bd2 {[%clk 0:02:35]}  Bd6 {[%clk 0:02:58]} 11. c5 {[%clk 0:02:16]}  Qxb3 {[%clk 0:02:56]} 12. axb3 {[%clk 0:02:16]}  Bxh2 {[%clk 0:02:36]} 13. Kd1 {[%clk 0:02:07]}  Rh7 {[%clk 0:02:35]} 14. b4 {[%clk 0:02:05]}  Bg3 {[%clk 0:02:26]} 15. Rxh7 {[%clk 0:02:02]}  Nxh7 {[%clk 0:02:27]} 16. b5 {[%clk 0:02:01]}  Kd7 {[%clk 0:02:19]} 17. b4 {[%clk 0:01:41]}  a6 {[%clk 0:02:10]} 18. bxa6 {[%clk 0:01:32]}  Nxa6 {[%clk 0:02:08]} 19. b5 {[%clk 0:01:26]}  cxb5 {[%clk 0:02:06]} 20. Bxb5+ {[%clk 0:01:23]}  Kc8 {[%clk 0:02:03]} 21. c6 {[%clk 0:01:05]}  Nc7 {[%clk 0:01:56]} 22. Na4 {[%clk 0:00:29]}  Kb8 {[%clk 0:01:16]} 23. cxb7 {[%clk 0:00:24]}  Kxb7 {[%clk 0:01:11]} 24. Nc5+ {[%clk 0:00:23]}  Kc8 {[%clk 0:01:04]} 25. Bd7+ {[%clk 0:00:22]}  Kd8 {[%clk 0:01:02]} 26. Rb1 {[%clk 0:00:13]}  Nf6 {[%clk 0:00:52]} 27. Bc6 {[%clk 0:00:11]}  Ra2 {[%clk 0:00:44]} 28. Rb7 {[%clk 0:00:08]}  Bd6 {[%clk 0:00:25]} 29. Rb8+ {[%clk 0:00:06]}  Ke7 {[%clk 0:00:24]} 30. Nb7 {[%clk 0:00:06]}  Bh2 {[%clk 0:00:11]} 31. Bb4+ {[%clk 0:00:05]} 1-0


[Site "https://www.chess.com"]

[Event "Titled Tuesday Blitz November 14 Late 2023"]
[White "Kostiukov, Alexandr"]
[Black "Benaddi, Mouhcine"]
[WhiteFideId "14108100"]
[BlackFideId "9001050"]
[WhiteElo "2439"]
[BlackElo "2237"]
[Result "1-0"]
[Round "8"]
[TimeControl "180+1"]
[Date "2023.11.14"]
[WhiteClock "0:00:40"]
[BlackClock "0:00:00"]
[Board "89"]

1. g3 {[%clk 0:02:58]}  h5 {[%clk 0:01:24]} 2. Nf3 {[%clk 0:02:56]}  h4 {[%clk 0:01:25]} 3. Nxh4 {[%clk 0:02:56]}  d5 {[%clk 0:01:19]} 4. d4 {[%clk 0:02:48]}  c6 {[%clk 0:01:20]} 5. Nf3 {[%clk 0:02:48]}  Bf5 {[%clk 0:01:08]} 6. Bg2 {[%clk 0:02:44]}  Nd7 {[%clk 0:01:05]} 7. Bf4 {[%clk 0:02:34]}  e6 {[%clk 0:00:59]} 8. Nbd2 {[%clk 0:02:26]}  Be7 {[%clk 0:00:50]} 9. h4 {[%clk 0:02:22]}  Qb6 {[%clk 0:00:45]} 10. Qc1 {[%clk 0:02:00]}  c5 {[%clk 0:00:41]} 11. dxc5 {[%clk 0:01:47]}  Bxc5 {[%clk 0:00:38]} 12. O-O {[%clk 0:01:46]}  f6 {[%clk 0:00:33]} 13. Nb3 {[%clk 0:01:27]}  e5 {[%clk 0:00:29]} 14. Nxc5 {[%clk 0:01:27]}  Nxc5 {[%clk 0:00:27]} 15. Bd2 {[%clk 0:01:07]}  Ne4 {[%clk 0:00:23]} 16. e3 {[%clk 0:01:03]}  Ne7 {[%clk 0:00:20]} 17. Be1 {[%clk 0:00:55]}  Rc8 {[%clk 0:00:16]} 18. c3 {[%clk 0:00:53]}  Kf7 {[%clk 0:00:14]} 19. Nd2 {[%clk 0:00:53]}  g5 {[%clk 0:00:05]} 20. Nxe4 {[%clk 0:00:49]}  dxe4 {[%clk 0:00:06]} 21. hxg5 {[%clk 0:00:48]}  fxg5 {[%clk 0:00:03]} 22. Qc2 {[%clk 0:00:45]}  Qh6 {[%clk 0:00:04]} 23. f3 {[%clk 0:00:42]}  Qh2+ {[%clk 0:00:04]} 24. Kf2 {[%clk 0:00:42]}  exf3 {[%clk 0:00:04]} 25. Qb3+ {[%clk 0:00:42]}  Kg6 {[%clk 0:00:00]} 26. Kxf3 {[%clk 0:00:40]} 1-0


[Site "https://www.chess.com"]

[Event "Titled Tuesday Blitz November 14 Late 2023"]
[White "Polaczek, Richard"]
[Black "Rodriguez Dominguez, Melissa"]
[WhiteFideId "200026"]
[BlackFideId "3517560"]
[WhiteElo "2436"]
[BlackElo "2241"]
[Result "1/2-1/2"]
[Round "8"]
[TimeControl "180+1"]
[Date "2023.11.14"]
[WhiteClock "0:00:16"]
[BlackClock "0:00:15"]
[Board "90"]

1. d4 {[%clk 0:03:00]}  d5 {[%clk 0:02:59]} 2. c4 {[%clk 0:03:00]}  c6 {[%clk 0:02:58]} 3. Nc3 {[%clk 0:02:59]}  Nf6 {[%clk 0:02:57]} 4. cxd5 {[%clk 0:02:59]}  cxd5 {[%clk 0:02:57]} 5. Bf4 {[%clk 0:02:59]}  Nc6 {[%clk 0:02:55]} 6. e3 {[%clk 0:02:59]}  Bf5 {[%clk 0:02:38]} 7. Qb3 {[%clk 0:02:57]}  Qd7 {[%clk 0:02:29]} 8. Bb5 {[%clk 0:02:36]}  e6 {[%clk 0:02:18]} 9. Nf3 {[%clk 0:02:34]}  Bd6 {[%clk 0:02:09]} 10. Bxd6 {[%clk 0:02:32]}  Qxd6 {[%clk 0:02:08]} 11. Ne5 {[%clk 0:02:31]}  O-O {[%clk 0:02:06]} 12. f4 {[%clk 0:02:26]}  Ne4 {[%clk 0:01:55]} 13. Nxe4 {[%clk 0:02:17]}  Bxe4 {[%clk 0:01:56]} 14. Bxc6 {[%clk 0:02:16]}  bxc6 {[%clk 0:01:55]} 15. O-O {[%clk 0:02:15]}  c5 {[%clk 0:01:52]} 16. Qa3 {[%clk 0:02:12]}  Rfc8 {[%clk 0:01:43]} 17. Rac1 {[%clk 0:02:11]}  f6 {[%clk 0:01:32]} 18. Ng4 {[%clk 0:02:09]}  Qd7 {[%clk 0:01:02]} 19. dxc5 {[%clk 0:02:02]}  e5 {[%clk 0:01:01]} 20. Nf2 {[%clk 0:02:01]}  exf4 {[%clk 0:00:59]} 21. Nxe4 {[%clk 0:01:55]}  dxe4 {[%clk 0:00:59]} 22. Rxf4 {[%clk 0:01:54]}  f5 {[%clk 0:00:59]} 23. Rcf1 {[%clk 0:01:54]}  g6 {[%clk 0:00:59]} 24. g4 {[%clk 0:01:52]}  fxg4 {[%clk 0:00:55]} 25. Qb3+ {[%clk 0:01:50]}  Kh8 {[%clk 0:00:53]} 26. Rf7 {[%clk 0:01:41]}  Qd3 {[%clk 0:00:50]} 27. Qe6 {[%clk 0:01:15]}  Qxe3+ {[%clk 0:00:49]} 28. Kh1 {[%clk 0:01:15]}  Qg5 {[%clk 0:00:31]} 29. Qd7 {[%clk 0:01:07]}  Qh6 {[%clk 0:00:19]} 30. Qd4+ {[%clk 0:00:53]}  Kg8 {[%clk 0:00:18]} 31. Rd7 {[%clk 0:00:53]}  Rf8 {[%clk 0:00:17]} 32. Qd5+ {[%clk 0:00:48]}  Kh8 {[%clk 0:00:16]} 33. Qe5+ {[%clk 0:00:37]}  Kg8 {[%clk 0:00:15]} 34. Qe6+ {[%clk 0:00:35]}  Kh8 {[%clk 0:00:15]} 35. Qe5+ {[%clk 0:00:18]}  Kg8 {[%clk 0:00:15]} 36. Qd5+ {[%clk 0:00:18]}  Kh8 {[%clk 0:00:15]} 37. Qe5+ {[%clk 0:00:16]} 1/2-1/2


[Site "https://www.chess.com"]